bitfinex-derivatives/quotes_BNBF0:USTF0_20250305
["timestamp","ask_amount","ask_price","bid_price","bid_amount"]
[1741152245363,0.33875338,590.4,589.28,1.25134261]
[1741152245564,0.31152523,590.39,589.28,1.25134261]
[1741152245764,0.33876486,590.38,589.28,1.25134261]
[1741152245963,0.31152523,590.37,589.28,1.25134261]
[1741152246166,0.33877633,590.36,589.28,1.25134261]
[1741152246366,0.31152523,590.35,589.28,1.25134261]
[1741152247162,0.31152523,590.35,589.2,1.77036921]
[1741152248871,0.31152523,590.35,589.16,0.33946635]
[1741152249065,0.33877633,590.36,589.2,1.77045928]
[1741152249270,0.31155469,590.35,589.2,1.77045928]
[1741152251871,0.31155469,590.35,589.16,1.59080896]
[1741152252073,0.31155469,590.35,589.2,1.77039923]
[1741152253370,0.31155469,590.35,589.21,1.25134261]
[1741152253972,0.31155469,590.35,589.22,0.33943179]
[1741152255271,0.31155469,590.35,589.28,1.25134261]
[1741152256671,0.31153755,590.34,589.28,1.25134261]
[1741152256873,0.31153755,590.33,589.28,1.25134261]
[1741152257173,0.33877633,590.36,589.28,1.25134261]
[1741152257373,0.31153812,590.35,589.28,1.25134261]
[1741152258268,0.33877633,590.36,589.28,1.25134261]
[1741152258467,0.33877633,590.36,589.23,1.77024913]
[1741152258468,0.31153679,590.35,589.39,1.25134261]
[1741152260571,0.31153679,590.35,589.55,1.25134261]
[1741152261874,0.31153927,590.34,589.55,1.25134261]
[1741152262078,0.31153927,590.35,589.55,1.25134261]
[1741152262279,0.31153927,590.34,589.55,1.25134261]
[1741152262480,0.31153927,590.35,589.56,1.25134261]
[1741152262681,0.31153927,590.34,589.56,1.25134261]
[1741152262882,0.31153927,590.35,589.56,1.25134261]
[1741152264679,0.33877633,590.36,589.56,1.25134261]
[1741152264876,0.31153851,590.35,589.6,1.25134261]
[1741152265074,0.33877633,590.36,589.6,1.25134261]
[1741152266576,0.33877633,590.36,589.5,1.25134261]
[1741152270786,0.33877633,590.36,589.51,1.25134261]
[1741152274888,0.3115382,590.35,589.51,1.25134261]
[1741152275093,0.3115382,590.35,589.52,1.25134261]
[1741152277293,0.3115382,590.35,589.68,1.25134261]
[1741152277890,0.33877633,590.36,589.68,1.25134261]
[1741152279595,0.33877633,590.36,589.54,1.25134261]
[1741152282099,0.33877633,590.36,589.52,1.25134261]
[1741152284694,0.33877633,590.36,589.59,1.25134261]
[1741152287107,0.33877633,590.36,589.72,1.25134261]
[1741152289205,0.33877633,590.36,589.73,1.25134261]
[1741152295009,0.33877633,590.36,589.74,1.25134261]
[1741152297006,0.33877633,590.36,589.65,1.76947653]
[1741152299812,0.33877633,590.36,589.56,1.25134261]
[1741152300214,0.33877633,590.36,589.65,1.76939406]
[1741152300414,0.33877633,590.36,589.56,1.25134261]
[1741152300714,0.33877633,590.36,589.65,1.76934908]
[1741152301008,0.33877633,590.36,589.56,1.25134261]
[1741152301208,0.33877633,590.36,589.57,1.76942405]
[1741152301613,0.33877633,590.36,589.63,1.25134261]
[1741152303414,0.33877633,590.36,589.59,1.7693041]
[1741152303415,0.33877633,590.36,589.66,1.25134261]
[1741152305010,1.01392458,591.0,589.66,1.25134261]
[1741152305215,0.33842092,590.98,589.66,1.25134261]
[1741152305412,0.31141918,590.97,589.66,1.25134261]
[1741152305613,0.3384381,590.95,589.66,1.25134261]
[1741152305810,0.31141918,590.94,589.66,1.25134261]
[1741152306015,0.33845529,590.92,589.68,1.25134261]
[1741152306214,0.31141918,590.91,589.68,1.25134261]
[1741152306411,0.33847247,590.89,589.68,1.25134261]
[1741152307017,0.31143615,590.88,589.68,1.25134261]
[1741152307518,0.33848965,590.86,589.68,1.25134261]
[1741152307719,0.33848965,590.86,589.62,1.76919916]
[1741152308919,0.33848965,590.86,589.11,1.25134261]
[1741152309219,1.76936407,590.85,589.62,1.76936407]
[1741152309422,1.76936407,590.85,589.1,1.25134261]
[1741152309920,5.95261182,590.85,589.1,1.25134261]
[1741152310121,4.18324775,590.84,589.1,1.25134261]
[1741152310720,1.20751082,590.83,589.1,1.25134261]
[1741152311624,3.84296648,590.84,589.76,1.25134261]
[1741152311822,2.17487649,590.83,589.76,1.25134261]
[1741152312322,1.20751082,590.83,589.76,1.25134261]
[1741152312919,0.33848965,590.86,589.76,1.25134261]
[1741152314422,0.33848965,590.86,589.83,1.25134261]
[1741152315128,0.31141485,590.85,589.83,1.25134261]
[1741152315318,0.33850684,590.83,589.83,1.25134261]
[1741152315517,0.31141485,590.82,589.83,1.25134261]
[1741152315718,0.3385183,590.81,589.83,1.25134261]
[1741152315920,0.31141485,590.8,589.83,1.25134261]
[1741152316123,0.33852976,590.79,589.83,1.25134261]
[1741152316320,0.31141485,590.78,589.83,1.25134261]
[1741152316526,0.33854122,590.77,589.83,1.25134261]
[1741152316726,0.31141485,590.76,589.73,1.25134261]
[1741152316926,0.33855268,590.75,589.73,1.25134261]
[1741152317125,0.31141485,590.74,589.73,1.25134261]
[1741152317324,0.33856414,590.73,589.73,1.25134261]
[1741152317626,0.31141485,590.72,589.73,1.25134261]
[1741152317825,0.31140841,590.71,589.73,1.25134261]
[1741152318027,0.31140841,590.7,589.73,1.25134261]
[1741152318226,0.33858707,590.69,589.73,1.25134261]
[1741152318427,0.31140841,590.68,589.73,1.25134261]
[1741152318628,0.33859854,590.67,589.72,1.25134261]
[1741152318926,0.31140841,590.66,589.72,1.25134261]
[1741152319121,0.33861,590.65,589.72,1.25134261]
[1741152319322,0.31140841,590.64,589.72,1.25134261]
[1741152322928,0.33861,590.65,589.72,1.25134261]
[1741152323229,0.31140843,590.64,589.72,1.25134261]
[1741152323927,0.31140843,590.64,589.73,1.25134261]
[1741152326225,0.31140843,590.64,589.8,1.25134261]
[1741152326432,0.33861,590.65,589.8,1.25134261]
[1741152326630,0.31140369,590.64,589.8,1.25134261]
[1741152328024,0.33861,590.65,589.8,1.25134261]
[1741152328230,0.31141627,590.64,589.8,1.25134261]
[1741152328732,0.31141627,590.64,589.83,1.25134261]
[1741152330034,0.33862147,590.63,589.83,1.25134261]
[1741152330233,0.31141627,590.62,589.83,1.25134261]
[1741152330431,0.33863293,590.61,589.82,1.25134261]
[1741152330627,0.31141627,590.6,589.82,1.25134261]
[1741152332433,0.3386444,590.59,589.82,1.25134261]
[1741152332632,0.31141627,590.58,589.82,1.25134261]
[1741152332832,0.33865587,590.57,589.82,1.25134261]
[1741152333030,0.31141627,590.56,589.82,1.25134261]
[1741152333233,0.33866734,590.55,589.78,1.25134261]
[1741152333431,0.31141627,590.54,589.78,1.25134261]
[1741152334534,0.33867881,590.53,589.78,1.25134261]
[1741152334735,0.31141627,590.52,589.78,1.25134261]
[1741152334928,0.33867881,590.53,589.78,1.25134261]
[1741152335134,0.31147297,590.52,589.78,1.25134261]
[1741152335626,0.33869028,590.51,589.78,1.25134261]
[1741152335829,0.31147297,590.5,589.78,1.25134261]
[1741152336428,0.33869028,590.51,589.78,1.25134261]
[1741152337332,0.31150761,590.5,589.78,1.25134261]
[1741152337529,0.33870175,590.49,589.75,1.25134261]
[1741152337729,0.31150761,590.48,589.75,1.25134261]
[1741152337935,0.33871322,590.47,589.75,1.25134261]
[1741152338133,0.31150761,590.46,589.75,1.25134261]
[1741152338334,0.3387247,590.45,589.75,1.25134261]
[1741152338533,0.31150761,590.44,589.75,1.25134261]
[1741152338737,0.65023804,590.44,589.75,1.25134261]
[1741152338938,0.31150761,590.43,589.75,1.25134261]
[1741152339840,0.31150761,590.43,589.63,1.25134261]
[1741152340034,0.33874191,590.42,589.63,1.25134261]
[1741152340235,0.31153408,590.41,589.63,1.25134261]
[1741152340438,0.33875338,590.4,589.63,1.25134261]
[1741152340639,0.31153408,590.39,589.63,1.25134261]
[1741152340937,0.33876486,590.38,589.63,1.25134261]
[1741152341142,0.31153408,590.37,589.63,1.25134261]
[1741152342738,0.31153408,590.37,589.58,1.25134261]
[1741152342933,0.31153408,590.37,589.64,1.7699115]
[1741152344841,0.31153408,590.37,589.59,1.25134261]
[1741152345241,0.31153408,590.37,589.64,1.769904]
[1741152347850,0.31153408,590.37,589.51,1.25134261]
[1741152348051,0.31153408,590.37,589.64,1.769904]
[1741152348450,0.31153408,590.37,589.51,1.25134261]
[1741152348647,0.33876486,590.38,589.51,1.25134261]
[1741152348648,0.33876486,590.38,589.64,1.769904]
[1741152348851,0.33876486,590.38,589.51,1.25134261]
[1741152350047,0.33876486,590.38,589.47,1.25134261]
[1741152350450,0.33876486,590.38,589.48,1.76982149]
[1741152350846,0.33876486,590.38,589.47,1.25134261]
[1741152351047,0.33876486,590.38,589.48,1.76981399]
[1741152352650,0.33876486,590.38,589.5,1.25134261]
[1741152355054,0.33876486,590.38,589.6,1.25134261]
[1741152356949,0.33876486,590.38,589.64,1.25134261]
[1741152358956,0.33876486,590.38,589.56,1.25134261]
[1741152360957,0.33876486,590.38,589.53,3.02088662]
[1741152362853,0.33876486,590.38,589.53,1.25134261]
[1741152364057,0.33876486,590.38,589.6,1.25134261]
[1741152365859,0.33876486,590.38,589.25,2.59801053]
[1741152365860,0.33876486,590.38,589.39,1.25134261]
[1741152366056,0.33876486,590.38,589.56,1.76934908]
[1741152366457,0.33876486,590.38,589.39,1.25134261]
[1741152366659,0.33876486,590.38,589.56,1.76945404]
[1741152366864,0.33876486,590.38,589.39,1.25134261]
[1741152367864,0.33876486,590.38,589.51,1.25134261]
[1741152369060,0.33876486,590.38,589.52,1.76955151]
[1741152370568,0.33876486,590.38,589.67,1.25134261]
[1741152371664,0.31150315,590.37,589.67,1.25134261]
[1741152374571,0.31151712,590.36,589.67,1.25134261]
[1741152374770,0.31151712,590.37,589.68,1.25134261]
[1741152375070,0.33876486,590.38,589.68,1.25134261]
[1741152375071,0.31151712,590.36,589.68,1.25134261]
[1741152375269,0.31151712,590.37,589.68,1.25134261]
[1741152376170,0.31152201,590.36,589.68,1.25134261]
[1741152376370,0.31152201,590.37,589.68,1.25134261]
[1741152376568,0.31152201,590.36,589.68,1.25134261]
[1741152376769,0.31152201,590.37,589.68,1.25134261]
[1741152378276,0.31152201,590.37,589.67,1.25134261]
[1741152379774,0.31152201,590.37,589.69,1.25134261]
[1741152380178,0.33876486,590.38,589.69,1.25134261]
[1741152389783,0.33876486,590.38,589.63,1.7695815]
[1741152389784,0.33876486,590.38,589.75,1.25134261]
[1741152390983,0.31149524,590.37,589.75,1.25134261]
[1741152391290,0.31149524,590.37,589.73,1.25134261]
[1741152393187,0.31149524,590.37,589.71,1.25134261]
[1741152395990,0.33876486,590.38,589.71,1.25134261]
[1741152396288,0.31149713,590.37,589.71,1.25134261]
[1741152397087,0.33876486,590.38,589.71,1.25134261]
[1741152397292,0.31149798,590.37,589.67,1.25134261]
[1741152397988,0.33876486,590.38,589.67,1.25134261]
[1741152399194,0.33876486,590.38,589.69,1.25134261]
[1741152401195,0.33876486,590.38,589.71,1.25134261]
[1741152402294,0.31149525,590.37,589.71,1.25134261]
[1741152404392,0.31149525,590.37,589.73,1.25134261]
[1741152405395,0.31151424,590.36,589.73,1.25134261]
[1741152405595,0.31151424,590.35,589.73,1.25134261]
[1741152405892,0.31151424,590.34,589.73,1.25134261]
[1741152406091,0.33876486,590.38,589.73,1.25134261]
[1741152406293,0.31151003,590.37,589.73,1.25134261]
[1741152406495,0.31151003,590.37,589.71,1.25134261]
[1741152406890,0.33876486,590.38,589.71,1.25134261]
[1741152407092,0.31150852,590.37,589.71,1.25134261]
[1741152407392,0.33876486,590.38,589.71,1.25134261]
[1741152408794,0.33876486,590.38,589.6,1.76976149]
[1741152410894,0.33876486,590.38,589.58,1.25134261]
[1741152411495,0.33876486,590.38,589.33,1.52699394]
[1741152411496,0.33876486,590.38,589.62,1.25134261]
[1741152413602,0.33876486,590.38,589.64,1.25134261]
[1741152415303,0.33876486,590.38,589.63,1.25134261]
[1741152417205,0.31153144,590.37,589.63,1.25134261]
[1741152417403,0.31153144,590.37,589.55,1.25134261]
[1741152418000,0.31153144,590.37,589.56,1.77009156]
[1741152419507,0.31153144,590.37,589.64,1.25134261]
[1741152420007,0.33876486,590.38,589.64,1.25134261]
[1741152421708,0.33876486,590.38,589.54,1.77005404]
[1741152423003,0.33876486,590.38,589.39,1.25134261]
[1741152423204,0.33876486,590.38,589.54,1.769904]
[1741152423604,0.33876486,590.38,589.39,1.25134261]
[1741152423809,0.33876486,590.38,589.54,1.7698665]
[1741152424105,0.33876486,590.38,589.38,1.25134261]
[1741152424306,0.33876486,590.38,589.54,1.769889]
[1741152424507,0.33876486,590.38,589.38,1.25134261]
[1741152424712,0.33876486,590.38,589.54,1.7698965]
[1741152425106,0.33876486,590.38,589.38,1.25134261]
[1741152426113,0.33876486,590.38,589.41,1.25134261]
[1741152428113,0.33876486,590.38,589.43,1.25134261]
[1741152429115,0.33876486,590.38,589.44,1.76980649]
[1741152430117,0.33876486,590.38,589.61,1.25134261]
[1741152433024,0.33876486,590.38,589.64,1.25134261]
[1741152434622,0.33876486,590.38,589.63,1.25134261]
[1741152437620,0.31150108,590.37,589.63,1.25134261]
[1741152437828,0.33876486,590.38,589.63,1.25134261]
[1741152438228,0.33876486,590.38,589.62,1.25134261]
[1741152438421,0.31149051,590.37,589.62,1.25134261]
[1741152439227,0.33876486,590.38,589.62,1.25134261]
[1741152439623,0.31149801,590.37,589.62,1.25134261]
[1741152440422,0.33876486,590.38,589.62,1.25134261]
[1741152440627,0.3114962,590.37,589.72,1.25134261]
[1741152440827,0.33876486,590.38,589.72,1.25134261]
[1741152441329,0.3114962,590.37,589.72,1.25134261]
[1741152443432,0.31149922,590.36,589.72,1.25134261]
[1741152443625,0.33876486,590.38,589.72,1.25134261]
[1741152444027,0.31149757,590.37,589.72,1.25134261]
[1741152444429,0.33876486,590.38,589.71,1.25134261]
[1741152444832,0.31149461,590.37,589.71,1.25134261]
[1741152445031,0.33876486,590.38,589.71,1.25134261]
[1741152445233,0.31149779,590.37,589.71,1.25134261]
[1741152445925,0.33876486,590.38,589.71,1.25134261]
[1741152446131,0.33876486,590.38,589.62,1.76967149]
[1741152446132,0.33876486,590.38,589.72,1.25134261]
[1741152450630,0.33876486,590.38,589.73,1.25134261]
[1741152452830,0.33876486,590.38,589.62,1.76964899]
[1741152452831,0.33876486,590.38,589.71,1.25134261]
[1741152455536,0.33876486,590.38,589.68,1.25134261]
[1741152457838,0.33876486,590.38,589.73,1.25134261]
[1741152459937,0.33876486,590.38,589.75,1.25134261]
[1741152462242,0.33876486,590.38,583.82,2.86976722]
[1741152462243,0.33876486,590.38,589.79,1.25134261]
[1741152465242,0.31150306,590.37,589.79,1.25134261]
[1741152466748,0.33876486,590.38,589.79,1.25134261]
[1741152466944,0.31154407,590.37,589.79,1.25134261]
[1741152468147,0.31154407,590.37,589.65,1.25134261]
[1741152468548,0.31154566,590.36,589.65,1.25134261]
[1741152468749,0.33876486,590.38,589.65,1.25134261]
[1741152468750,0.31154566,590.37,589.65,1.25134261]
[1741152468944,0.31154566,590.36,589.65,1.25134261]
[1741152469151,0.31154566,590.37,589.65,1.25134261]
[1741152469349,0.31154566,590.36,589.65,1.25134261]
[1741152469649,0.31154566,590.35,589.65,1.25134261]
[1741152469948,0.31154566,590.34,589.65,1.25134261]
[1741152470149,0.31154566,590.36,589.66,1.25134261]
[1741152470341,0.31154566,590.35,589.66,1.25134261]
[1741152471343,0.33878781,590.34,589.66,1.25134261]
[1741152471853,0.33878781,590.34,589.62,1.25134261]
[1741152472150,0.31156943,590.33,589.62,1.25134261]
[1741152473643,0.31161091,590.32,589.62,1.25134261]
[1741152473848,0.31161091,590.31,589.62,1.25134261]
[1741152474049,0.31161091,590.33,589.62,1.25134261]
[1741152474247,0.31161091,590.32,589.37,1.25134261]
[1741152474554,0.31161091,590.31,589.37,1.25134261]
[1741152474849,0.31161091,590.3,589.37,1.25134261]
[1741152475049,0.33881651,590.29,589.37,1.25134261]
[1741152475249,0.31161091,590.28,589.37,3.02188446]
[1741152475443,0.650438,590.27,589.37,3.02188446]
[1741152475646,0.65044374,590.26,589.37,3.02188446]
[1741152475844,0.65044948,590.25,589.37,3.02188446]
[1741152476046,0.65045522,590.24,589.37,1.77054185]
[1741152476248,0.65046096,590.23,589.37,1.77054185]
[1741152476447,0.31161001,590.22,589.37,1.77054185]
[1741152477052,0.31161001,590.22,589.36,1.25134261]
[1741152477245,0.31161001,590.22,589.37,1.77062442]
[1741152477752,0.33885095,590.23,589.37,1.77062442]
[1741152477946,0.33886243,590.21,589.37,1.77062442]
[1741152480046,0.33886243,590.21,589.28,1.25134261]
[1741152481047,0.33886243,590.21,589.29,1.7705944]
[1741152481453,0.31164839,590.2,589.29,1.7705944]
[1741152481753,0.65051657,590.2,589.29,1.7705944]
[1741152481947,0.31164839,590.19,589.29,1.7705944]
[1741152482654,0.33886818,590.2,589.29,1.7705944]
[1741152483054,0.33886818,590.2,589.2,1.25134261]
[1741152483257,0.33886818,590.2,589.29,1.77034669]
[1741152485956,0.33886818,590.2,589.12,1.25134261]
[1741152486261,0.33886818,590.2,589.29,1.77040674]
[1741152488959,0.33886818,590.2,589.18,1.25134261]
[1741152489158,0.33886818,590.2,589.29,1.77024163]
[1741152492064,0.33886818,590.2,589.17,1.25134261]
[1741152492363,0.33886818,590.2,589.29,1.77029416]
[1741152495064,0.33886818,590.2,589.26,1.25134261]
[1741152495364,0.33886818,590.2,589.29,1.77020411]
[1741152496868,0.33886818,590.2,589.39,1.25134261]
[1741152497664,0.31159914,590.19,589.39,1.25134261]
[1741152498465,0.31159914,590.19,589.4,1.25134261]
[1741152499462,0.33886818,590.2,589.4,1.25134261]
[1741152499658,0.31159338,590.19,589.4,1.25134261]
[1741152500058,0.31159338,590.19,589.47,1.25134261]
[1741152503267,0.31159338,590.19,589.5,1.25134261]
[1741152504463,0.33886818,590.2,589.5,1.25134261]
[1741152504663,0.31159867,590.19,589.5,1.25134261]
[1741152504863,0.33886818,590.2,589.5,1.25134261]
[1741152506270,0.33886818,590.2,589.51,1.25134261]
[1741152508769,0.33886818,590.2,589.52,1.25134261]
[1741152510870,0.33886818,590.2,589.61,1.25134261]
[1741152512973,0.33886818,590.2,589.59,1.25134261]
[1741152515373,0.33886818,590.2,589.48,1.76982149]
[1741152515975,0.33886818,590.2,589.36,1.25134261]
[1741152516168,0.33886818,590.2,589.48,1.76974649]
[1741152519072,0.33886818,590.2,589.35,1.25134261]
[1741152519477,0.33886818,590.2,589.36,1.25134261]
[1741152520174,0.33886818,590.2,589.37,1.7698815]
[1741152521078,0.33886818,590.2,589.55,1.25134261]
[1741152523687,0.33886818,590.2,589.52,1.25134261]
[1741152526982,0.33886818,590.2,589.53,1.25134261]
[1741152528482,1.66714633,590.73,589.53,1.25134261]
[1741152528689,0.33857561,590.71,589.53,1.25134261]
[1741152528884,0.31149993,590.7,589.53,1.25134261]
[1741152529089,0.33858707,590.69,589.53,1.25134261]
[1741152529290,0.31149993,590.68,589.53,1.25134261]
[1741152529490,0.33859854,590.67,589.53,1.25134261]
[1741152529690,0.31149993,590.66,589.56,1.25134261]
[1741152529891,0.33861,590.65,589.56,1.25134261]
[1741152530084,0.31149993,590.64,589.56,1.25134261]
[1741152530288,0.33862147,590.63,589.56,1.25134261]
[1741152530486,0.31149993,590.62,589.56,1.25134261]
[1741152530689,0.33863293,590.61,589.56,1.25134261]
[1741152531085,0.31149473,590.6,589.56,1.25134261]
[1741152531391,0.3386444,590.59,589.56,1.25134261]
[1741152531588,0.31149473,590.58,589.56,1.25134261]
[1741152531790,0.33865587,590.57,589.56,1.25134261]
[1741152531991,0.31149473,590.56,589.56,1.25134261]
[1741152532191,0.33866734,590.55,589.56,1.25134261]
[1741152532490,0.33866734,590.55,589.58,1.25134261]
[1741152532692,0.31149045,590.54,589.58,1.25134261]
[1741152532893,0.65016352,590.54,589.58,1.25134261]
[1741152533093,0.31149045,590.53,589.58,1.25134261]
[1741152534093,0.33867307,590.54,589.58,1.25134261]
[1741152534295,0.31150116,590.53,589.58,1.25134261]
[1741152535895,0.33867307,590.54,589.58,1.25134261]
[1741152536197,0.31150007,590.53,589.58,1.25134261]
[1741152537695,0.31149588,590.52,589.58,1.25134261]
[1741152537897,0.31149588,590.53,589.58,1.25134261]
[1741152538097,0.31149588,590.52,589.58,1.25134261]
[1741152538296,0.31149588,590.51,589.58,1.25134261]
[1741152538496,0.31149588,590.5,589.58,1.25134261]
[1741152538694,0.31149588,590.49,589.58,1.25134261]
[1741152538895,0.31149588,590.48,589.58,1.25134261]
[1741152539091,0.31149588,590.53,589.58,1.25134261]
[1741152539293,0.31149588,590.53,589.56,1.76976899]
[1741152539294,0.31149588,590.53,589.62,1.25134261]
[1741152541893,0.31149588,590.53,589.7,1.25134261]
[1741152544798,0.31149588,590.53,589.66,1.25134261]
[1741152546398,0.33867307,590.54,589.66,1.25134261]
[1741152546898,0.33867307,590.54,589.64,3.02094661]
[1741152549102,0.33867307,590.54,589.64,1.25134261]
[1741152549400,0.33867307,590.54,589.74,1.25134261]
[1741152551003,0.33867307,590.54,589.73,1.25134261]
[1741152552803,0.33867307,590.54,589.72,1.25134261]
[1741152555301,0.33867307,590.54,589.7,1.76901929]
[1741152558204,0.33867307,590.54,589.7,1.76897433]
[1741152561006,0.33867307,590.54,589.62,1.25134261]
[1741152561407,0.33867307,590.54,589.7,1.76905676]
[1741152561708,0.33867307,590.54,589.62,1.25134261]
[1741152562009,0.33867307,590.54,589.7,1.76907924]
[1741152562209,0.33867307,590.54,589.62,1.25134261]
[1741152562410,0.33867307,590.54,589.79,1.25134261]
[1741152564404,0.31142084,590.53,589.78,1.25134261]
[1741152565809,0.33867307,590.54,589.78,1.25134261]
[1741152566507,0.33867307,590.54,589.73,1.25134261]
[1741152568318,0.33867307,590.54,589.77,1.25134261]
[1741152570519,0.33867307,590.54,589.81,1.25134261]
[1741152573418,0.33867307,590.54,589.83,1.25134261]
[1741152575519,0.33867307,590.54,589.85,1.25134261]
[1741152577720,0.33867307,590.54,589.8,1.76877952]
[1741152579021,0.33867307,590.54,589.63,1.25134261]
[1741152579221,0.33867307,590.54,589.8,1.76888441]
[1741152579618,0.33867307,590.54,589.67,1.25134261]
[1741152579817,0.33867307,590.54,589.8,1.7688919]
[1741152580017,0.33867307,590.54,589.67,1.25134261]
[1741152582327,0.33867307,590.54,589.68,1.25134261]
[1741152583222,0.33867307,590.54,589.69,1.76886942]
[1741152584528,0.33867307,590.54,589.69,3.02021203]
[1741152585120,0.33867307,590.54,589.69,1.25134261]
[1741152585325,0.33867307,590.54,589.69,3.02012962]
[1741152586725,0.33867307,590.54,589.95,1.25134261]
[1741152588829,0.33867307,590.54,589.98,1.25134261]
[1741152591130,0.33867307,590.54,589.95,1.25134261]
[1741152593029,0.33867307,590.54,589.93,1.25134261]
[1741152596726,0.33867307,590.54,589.92,1.25134261]
[1741152598631,0.33867307,590.54,589.84,1.76883945]
[1741152599827,0.31141565,590.53,589.84,1.76883945]
[1741152600430,0.31141565,590.53,589.8,1.25134261]
[1741152600633,0.31141565,590.53,589.84,1.25134261]
[1741152602227,0.33867307,590.54,589.84,1.25134261]
[1741152602433,0.31146317,590.53,589.84,1.25134261]
[1741152603936,0.31146317,590.53,589.48,2.59801053]
[1741152603937,0.31146317,590.53,589.77,1.25134261]
[1741152604738,0.33867307,590.54,589.77,1.25134261]
[1741152604940,0.31145573,590.53,589.77,1.25134261]
[1741152605533,0.31146043,590.52,589.77,1.25134261]
[1741152605838,0.31146043,590.51,589.77,1.25134261]
[1741152606036,0.31146043,590.53,589.71,1.7695815]
[1741152606239,0.31146043,590.53,589.55,1.25134261]
[1741152606641,0.31146043,590.53,589.56,1.7698665]
[1741152607441,0.31149509,590.52,589.56,1.7698665]
[1741152607640,0.31149509,590.53,589.56,1.7698665]
[1741152607838,0.31149509,590.52,589.56,1.7698665]
[1741152608035,0.31149509,590.51,589.56,1.7698665]
[1741152608238,0.31149509,590.5,589.56,1.7698665]
[1741152608439,0.31149509,590.49,589.56,1.7698665]
[1741152608641,0.31149509,590.53,589.62,1.25134261]
[1741152608842,0.31149509,590.52,589.62,1.25134261]
[1741152609044,0.31149509,590.53,589.62,1.25134261]
[1741152609642,0.33868454,590.52,589.62,1.25134261]
[1741152610040,0.31150884,590.51,589.58,1.25134261]
[1741152610344,2.63393354,590.68,589.58,1.25134261]
[1741152610345,0.65020532,590.5,589.58,1.25134261]
[1741152610547,0.3115093,590.49,589.58,1.25134261]
[1741152610844,0.31151612,590.48,589.58,1.25134261]
[1741152611145,0.33871322,590.47,589.58,1.25134261]
[1741152611345,0.31151612,590.46,589.58,1.25134261]
[1741152611545,0.3387247,590.45,589.58,1.25134261]
[1741152611743,0.31151612,590.44,589.58,1.25134261]
[1741152612339,0.31151612,590.44,589.49,1.25134261]
[1741152613146,0.31151612,590.44,589.5,1.77003904]
[1741152615854,0.3387247,590.45,589.5,1.77003904]
[1741152616053,0.31150121,590.44,589.5,1.77003904]
[1741152616653,0.3387247,590.45,589.5,1.77003904]
[1741152617955,0.3387247,590.45,589.36,1.25134261]
[1741152618359,0.3387247,590.45,589.5,1.7696415]
[1741152618556,0.3387247,590.45,589.36,1.25134261]
[1741152618757,0.3387247,590.45,589.5,1.76964899]
[1741152618957,0.3387247,590.45,589.32,1.25134261]
[1741152620359,0.3387247,590.45,589.26,1.25134261]
[1741152621159,0.3387247,590.45,589.27,0.33940299]
[1741152622059,0.3387247,590.45,589.28,1.76967149]
[1741152622258,0.3387247,590.45,589.29,0.33939147]
[1741152624759,0.3114949,590.44,589.29,0.33939147]
[1741152625154,0.3114949,590.44,589.34,1.25134261]
[1741152626061,0.3387247,590.45,589.34,1.25134261]
[1741152626260,0.31149484,590.44,589.34,1.25134261]
[1741152627162,0.3387247,590.45,589.34,1.25134261]
[1741152627462,0.3387247,590.45,589.48,1.25134261]
[1741152628357,0.31149819,590.44,589.48,1.25134261]
[1741152629658,0.3387247,590.45,589.48,1.25134261]
[1741152629862,0.31149547,590.44,589.48,1.25134261]
[1741152631265,0.31149547,590.44,589.51,1.25134261]
[1741152632563,0.3387247,590.45,589.51,1.25134261]
[1741152633668,0.3387247,590.45,589.57,1.25134261]
[1741152636166,0.3387247,590.45,589.6,1.25134261]
[1741152638365,0.3387247,590.45,589.63,1.25134261]
[1741152640569,0.3387247,590.45,589.7,1.25134261]
[1741152643071,0.3387247,590.45,589.79,1.25134261]
[1741152645577,0.3387247,590.45,589.7,1.25134261]
[1741152647676,0.3387247,590.45,589.63,1.25134261]
[1741152649579,0.3387247,590.45,589.64,1.25134261]
[1741152651681,0.3387247,590.45,589.77,1.25134261]
[1741152654585,0.3387247,590.45,585.23,6.07605188]
[1741152654586,0.3387247,590.45,589.73,1.25134261]
[1741152659680,0.3387247,590.45,589.77,1.25134261]
[1741152660186,0.31146732,590.44,589.77,1.25134261]
[1741152661581,0.31146732,590.44,589.73,1.25134261]
[1741152663684,0.31150222,590.43,589.73,1.25134261]
[1741152663882,0.31150222,590.44,589.73,1.25134261]
[1741152664083,0.31150222,590.43,589.73,1.25134261]
[1741152664284,0.31150222,590.42,589.73,1.25134261]
[1741152664485,0.31150222,590.41,589.66,1.27249495]
[1741152664689,0.31150222,590.44,589.6,1.25134261]
[1741152664879,0.31150222,590.43,589.6,1.25134261]
[1741152665083,0.31150222,590.42,589.6,1.25134261]
[1741152665287,0.31150222,590.44,589.6,1.25134261]
[1741152665585,0.65023839,590.43,589.6,1.25134261]
[1741152665786,0.65024413,590.42,589.6,1.25134261]
[1741152665992,0.31150222,590.41,589.6,1.25134261]
[1741152666179,0.33875338,590.4,589.6,1.25134261]
[1741152666377,0.31150222,590.39,589.6,1.25134261]
[1741152666886,0.33876486,590.38,589.6,1.25134261]
[1741152667086,0.31150222,590.37,589.56,1.25134261]
[1741152667288,0.33877633,590.36,589.56,1.25134261]
[1741152667583,0.31150222,590.35,589.56,1.25134261]